bitfinex/quotes_BTCUSD_20251230
["timestamp","ask_amount","ask_price","bid_price","bid_amount"]
[1767087137909,0.01144,87742.0,87731.0,0.1411]
[1767087138111,0.01144,87742.0,87722.0,0.00036929]
[1767087138112,0.51511009,87741.0,87722.0,0.00036929]
[1767087138667,0.01139731,87740.0,87722.0,0.00036929]
[1767087138868,0.51511009,87740.0,87722.0,0.00036929]
[1767087139487,0.51511009,87740.0,87722.0,0.14146929]
[1767087140264,0.01144,87742.0,87722.0,0.14146929]
[1767087140463,0.51511009,87740.0,87722.0,0.14146929]
[1767087141326,0.01144,87742.0,87722.0,0.14146929]
[1767087141528,0.01144,87742.0,87730.0,0.51511009]
[1767087141743,0.01144,87742.0,87722.0,0.14146929]
[1767087141903,0.0002,87747.0,87742.0,0.000549]
[1767087142112,0.01144,87746.0,87742.0,0.000549]
[1767087142558,0.01144,87746.0,87730.0,0.51511009]
[1767087142876,0.51511009,87740.0,87722.0,0.14146929]
[1767087143393,0.5265074,87740.0,87722.0,0.14146929]
[1767087144419,0.01139744,87739.0,87722.0,0.14146929]
[1767087145293,0.01139757,87738.0,87722.0,0.14146929]
[1767087145458,0.52650843,87732.0,87722.0,0.00036929]
[1767087145767,0.51511009,87732.0,87722.0,0.00036929]
[1767087145985,0.01139769,87737.0,87722.0,0.00036929]
[1767087146747,0.02283744,87739.0,87722.0,0.00036929]
[1767087147415,0.01139757,87738.0,87722.0,0.00036929]
[1767087147996,0.01139769,87737.0,87722.0,0.00036929]
[1767087148188,0.01139744,87739.0,87722.0,0.00036929]
[1767087148386,0.01144,87736.0,87722.0,0.00036929]
[1767087161077,0.0113986,87730.0,87722.0,0.00036929]
[1767087161289,0.01139847,87731.0,87722.0,0.00036929]
[1767087162013,0.52650843,87732.0,87722.0,0.00036929]
[1767087163797,0.01139821,87733.0,87722.0,0.00036929]
[1767087164047,0.51511009,87732.0,87722.0,0.00036929]
[1767087174392,0.01139795,87735.0,87722.0,0.00036929]
[1767087174587,0.51511009,87732.0,87722.0,0.00036929]
[1767087180984,0.01139821,87733.0,87722.0,0.00036929]
[1767087181184,0.51511009,87732.0,87722.0,0.00036929]
[1767087181416,0.51511009,87732.0,87722.0,0.00055369]
[1767087188340,0.01139795,87735.0,87722.0,0.00055369]
[1767087190438,0.07982703,87736.0,87722.0,0.00055369]
[1767087190637,0.02283782,87736.0,87722.0,0.00055369]
[1767087191725,0.01139795,87735.0,87722.0,0.00055369]
[1767087192224,0.01144,87736.0,87722.0,0.00055369]
[1767087193578,0.02283782,87736.0,87722.0,0.00055369]
[1767087193978,0.01144,87736.0,87722.0,0.00055369]
[1767087194557,0.01139782,87736.0,87722.0,0.00055369]
[1767087194760,0.02283757,87738.0,87722.0,0.00055369]
[1767087194887,0.01139769,87737.0,87722.0,0.00055369]
[1767087195301,0.01139782,87736.0,87722.0,0.00055369]
[1767087195499,0.01139769,87737.0,87722.0,0.00055369]
[1767087198596,0.02283757,87738.0,87722.0,0.00055369]
[1767087200297,0.01144,87738.0,87722.0,0.00055369]
[1767087202685,0.02283757,87738.0,87722.0,0.00055369]
[1767087204129,0.01139627,87748.0,87722.0,0.14786369]
[1767087204343,0.07981771,87748.0,87738.0,0.000549]
[1767087204543,0.0115964,87747.0,87738.0,0.000549]
[1767087204746,0.0115964,87747.0,87736.0,0.0003005]
[1767087206117,0.01139666,87745.0,87736.0,0.0003005]
[1767087206249,0.01139653,87746.0,87736.0,0.0003005]
[1767087206453,0.0115964,87747.0,87736.0,0.0003005]
[1767087207243,0.01139666,87745.0,87736.0,0.0003005]
[1767087207443,0.01139679,87744.0,87736.0,0.0003005]
[1767087208047,0.01139666,87745.0,87736.0,0.0003005]
[1767087208947,0.01139679,87744.0,87736.0,0.0003005]
[1767087210528,0.01139666,87745.0,87736.0,0.0003005]
[1767087212903,0.01139679,87744.0,87736.0,0.0003005]
[1767087214458,0.01139666,87745.0,87736.0,0.0003005]
[1767087214877,0.01139653,87746.0,87736.0,0.0003005]
[1767087216075,0.0115964,87747.0,87736.0,0.0003005]
[1767087218123,0.01139653,87746.0,87736.0,0.0003005]
[1767087219203,0.0115964,87747.0,87736.0,0.0003005]
[1767087220454,0.0002,87747.0,87730.0,0.01085569]
[1767087220994,0.0002,87747.0,87730.0,0.67329077]
[1767087221336,0.0002,87747.0,87731.0,0.14731]
[1767087222985,0.01139549,87754.0,87731.0,0.14731]
[1767087223188,0.0001457,87758.0,87730.0,0.52598077]
[1767087223189,0.0113951,87757.0,87737.0,0.66243508]
[1767087223439,0.01139549,87754.0,87737.0,0.66243508]
[1767087223607,0.01139536,87755.0,87737.0,0.66243508]
[1767087223773,0.01139536,87755.0,87737.0,0.14731]
[1767087224417,0.01139523,87756.0,87737.0,0.14731]
[1767087226727,0.01139536,87755.0,87737.0,0.14731]
[1767087227120,0.0113951,87757.0,87740.0,0.51512508]
[1767087227364,0.01139523,87756.0,87740.0,0.52656508]
[1767087227519,0.0113951,87757.0,87740.0,0.52656508]
[1767087228104,0.01139523,87756.0,87740.0,0.52656508]
[1767087228321,0.0113951,87757.0,87740.0,0.01144]
[1767087228729,0.01154067,87758.0,87741.0,0.14948]
[1767087229386,0.0113951,87757.0,87741.0,0.14948]
[1767087229840,0.01154067,87758.0,87741.0,0.14948]
[1767087230048,0.0113951,87757.0,87741.0,0.14948]
[1767087230248,0.01139536,87755.0,87741.0,0.14948]
[1767087230543,0.01139536,87755.0,87730.0,0.51512508]
[1767087230544,0.01139614,87749.0,87732.0,0.14948]
[1767087230746,0.01139601,87750.0,87733.0,0.01144]
[1767087230952,0.01139653,87746.0,87734.0,0.01144]
[1767087232939,0.01139666,87745.0,87734.0,0.01144]
[1767087233795,0.01139653,87746.0,87734.0,0.01144]
[1767087234623,0.01139666,87745.0,87734.0,0.01144]
[1767087237522,0.0113964,87747.0,87734.0,0.01144]
[1767087237718,0.01139627,87748.0,87734.0,0.01144]
[1767087238143,0.0113964,87747.0,87734.0,0.01144]
[1767087238339,0.01139627,87748.0,87734.0,0.01144]
[1767087238686,0.0113964,87747.0,87734.0,0.01144]
[1767087240030,0.22788994,87762.0,87727.0,0.0001457]
[1767087240031,0.14571,87744.0,87727.0,0.0001457]
[1767087240230,0.01139744,87739.0,87732.0,0.0002]
[1767087240601,0.06838776,87735.0,87732.0,0.0002]
[1767087241004,0.06838776,87735.0,87732.0,0.00015874]
[1767087241221,0.01139795,87735.0,87732.0,0.00015874]
[1767087241464,0.01139782,87736.0,87732.0,0.00015874]
[1767087241782,0.01139769,87737.0,87732.0,0.00015874]
[1767087242018,0.01139757,87738.0,87732.0,0.00015874]
[1767087242437,0.01139769,87737.0,87732.0,0.00015874]
[1767087243086,0.01139757,87738.0,87732.0,0.00015874]
[1767087243434,0.01139769,87737.0,87732.0,0.00015874]
[1767087243989,0.05699292,87731.0,87728.0,0.01144]
[1767087244265,0.01139795,87735.0,87714.0,0.06163502]
[1767087244266,0.01140029,87717.0,87714.0,0.0001348]
[1767087244400,0.06840182,87717.0,87714.0,0.00049325]
[1767087244607,0.01140029,87717.0,87714.0,0.00049325]
[1767087245012,0.01140016,87718.0,87714.0,0.00049325]
[1767087245593,0.01140016,87718.0,87714.0,0.000451]
[1767087245594,0.06840178,87717.0,87714.0,0.000451]
[1767087245984,0.06840178,87717.0,87714.0,1e-08]
[1767087246214,0.06840178,87717.0,87702.0,0.13995]
[1767087246215,0.01140185,87705.0,87691.0,0.1381405]
[1767087246415,0.0890325,87700.0,87691.0,0.0115475]
[1767087246746,0.01140263,87699.0,87691.0,0.0115475]
[1767087246952,0.0890325,87700.0,87691.0,0.0115475]
[1767087247179,0.01140276,87698.0,87691.0,0.0115475]
[1767087247378,0.0890325,87700.0,87691.0,0.0115475]
[1767087247379,0.01140263,87699.0,87691.0,0.0115475]
[1767087247921,0.07763,87700.0,87691.0,0.0115475]
[1767087248144,0.01140263,87699.0,87691.0,0.0115475]
[1767087248520,0.0114025,87700.0,87691.0,0.0115475]
[1767087249886,0.01140263,87699.0,87691.0,0.0115475]
[1767087250295,0.0114025,87700.0,87691.0,0.0115475]
[1767087250669,0.01140263,87699.0,87691.0,0.0001075]
[1767087251821,0.51512508,87701.0,87691.0,0.0001075]
[1767087252047,0.51457608,87701.0,87691.0,0.0001075]
[1767087252245,0.01140198,87704.0,87691.0,0.0001075]
[1767087252472,0.01140211,87703.0,87691.0,0.0001075]
[1767087254205,0.01140172,87706.0,87691.0,0.0001075]
[1767087254382,0.01144,87705.0,87691.0,0.0001075]
[1767087254887,0.51550533,87701.0,87691.0,0.0001075]
[1767087256047,0.0114012,87710.0,87691.0,0.1379875]
[1767087256247,0.01140185,87705.0,87691.0,0.1379875]
[1767087256487,0.01140159,87707.0,87691.0,0.1379875]
[1767087256686,0.01140172,87706.0,87691.0,0.1379875]
[1767087257210,0.01140159,87707.0,87691.0,0.1379875]
[1767087257772,0.01140146,87708.0,87691.0,0.1379875]
[1767087257971,0.01160133,87709.0,87691.0,0.1379875]
[1767087258180,0.0002,87709.0,87691.0,0.1379875]
[1767087262749,0.01140146,87708.0,87691.0,0.1379875]
[1767087262955,0.0002,87709.0,87691.0,0.1379875]
[1767087264287,0.01160133,87709.0,87691.0,0.1379875]
[1767087264614,0.0002,87709.0,87691.0,0.1379875]
[1767087265997,0.0002,87709.0,87693.0,0.13788]
[1767087266308,0.01160133,87709.0,87693.0,0.13788]
[1767087267045,0.0002,87709.0,87693.0,0.13788]
[1767087274174,0.0002,87709.0,87700.0,0.13788]
[1767087274943,0.0001455,87718.0,87709.0,0.0002]
[1767087275141,0.01140042,87716.0,87709.0,0.0002]
[1767087275340,0.01140042,87716.0,87701.0,0.13788]
[1767087275685,0.01140055,87715.0,87701.0,0.13788]
[1767087276384,0.01140081,87713.0,87701.0,0.13788]
[1767087276611,0.01140094,87712.0,87700.0,0.52694533]
[1767087276814,0.01140068,87714.0,87700.0,0.01144]
[1767087277454,0.01140068,87714.0,87700.0,0.52694533]
[1767087277869,0.01140081,87713.0,87700.0,0.52694533]
[1767087278781,0.0002,87732.0,87713.0,0.00055]
[1767087278937,0.01140016,87718.0,87713.0,0.00055]
[1767087279418,0.0113999,87720.0,87704.0,0.13788]
[1767087279569,0.01140003,87719.0,87704.0,0.13788]
[1767087279750,0.01140029,87717.0,87704.0,0.13788]
[1767087280118,0.01140016,87718.0,87704.0,0.13788]
[1767087280233,0.01140029,87717.0,87704.0,0.1380521]
[1767087280736,0.01140016,87718.0,87704.0,0.1380521]
[1767087281761,0.07979554,87723.0,87704.0,0.1380521]
[1767087281762,0.01139666,87745.0,87718.0,0.00055]
[1767087281960,0.01139705,87742.0,87730.0,0.51550533]
[1767087282405,0.000549,87730.0,87721.0,0.13788]
[1767087282584,0.011989,87730.0,87721.0,0.13788]
[1767087282783,0.01144,87730.0,87721.0,0.13788]
[1767087288047,0.01139873,87729.0,87719.0,0.0001669]
[1767087288455,0.01139886,87728.0,87719.0,0.0001669]
[1767087288675,0.01139873,87729.0,87719.0,0.0001669]
[1767087289030,0.0228386,87730.0,87719.0,0.0001669]
[1767087289605,0.01139873,87729.0,87719.0,0.0001669]
[1767087290029,0.01139886,87728.0,87719.0,0.0001669]
[1767087291091,0.01139977,87721.0,87704.0,0.01144]
[1767087291271,0.01144,87720.0,87710.0,0.51550533]
[1767087291880,0.01144,87720.0,87707.0,0.00053494]
[1767087292077,0.06840146,87718.0,87707.0,0.00053494]
[1767087292439,0.01140029,87717.0,87707.0,0.00053494]
[1767087292640,0.01140029,87717.0,87708.0,0.51550533]
[1767087292878,0.01140029,87717.0,87707.0,0.00053494]
[1767087293057,0.01140016,87718.0,87707.0,0.00053494]
[1767087293456,0.01140016,87718.0,87709.0,0.0003669]
[1767087294467,0.01140029,87717.0,87709.0,0.0003669]
[1767087295600,0.01140016,87718.0,87709.0,0.0003669]
[1767087295799,0.01140029,87717.0,87709.0,0.0003669]
[1767087296028,0.01140003,87719.0,87709.0,0.0003669]
[1767087296920,0.01140016,87718.0,87709.0,0.0003669]
[1767087297114,0.01144,87720.0,87709.0,0.0003669]
[1767087297313,0.01140003,87719.0,87709.0,0.0003669]
[1767087297712,0.53834523,87720.0,87709.0,0.0003669]
[1767087298077,0.0228399,87720.0,87709.0,0.0003669]
[1767087298230,0.01144,87720.0,87709.0,0.0003669]
[1767087300653,0.52694533,87720.0,87709.0,0.0003669]
[1767087301430,0.01144,87720.0,87709.0,0.0003669]
[1767087301579,0.01144,87720.0,87710.0,0.51550533]
[1767087301992,0.22793841,87743.0,87720.0,0.000716]
[1767087302202,0.01139795,87735.0,87721.0,0.14644]
[1767087302417,0.05698915,87736.0,87721.0,0.14644]
[1767087302418,0.01144,87734.0,87721.0,0.14644]
[1767087302600,0.02283808,87734.0,87721.0,0.14644]
[1767087303346,0.01139821,87733.0,87721.0,0.14644]
[1767087303552,0.01139847,87731.0,87721.0,0.14644]
[1767087303681,0.5269038,87731.0,87709.0,0.0003669]
[1767087303884,0.01139873,87729.0,87710.0,0.51550533]
[1767087304118,0.01139886,87728.0,87710.0,0.51550533]
[1767087304318,0.01139873,87729.0,87710.0,0.51550533]
[1767087304785,0.01139899,87727.0,87710.0,0.51550533]
[1767087304915,0.01139938,87724.0,87710.0,0.51550533]
[1767087307194,0.52690523,87720.0,87709.0,0.0003669]
[1767087307417,0.01144,87719.0,87709.0,0.0003669]
[1767087307775,0.01144,87719.0,87709.0,0.51587223]
[1767087308178,0.01144,87719.0,87709.0,0.0003669]
[1767087308901,0.01144,87718.0,87709.0,0.0003669]
[1767087309124,0.01144,87717.0,87709.0,0.0003669]
[1767087309328,0.01144,87716.0,87709.0,0.0003669]
[1767087309538,0.05700085,87718.0,87709.0,0.0003669]
[1767087309742,0.02284029,87717.0,87709.0,0.0003669]
[1767087309918,0.01140042,87716.0,87709.0,0.0003669]
[1767087310706,0.02284029,87717.0,87709.0,0.0003669]
[1767087310929,0.02284042,87716.0,87709.0,0.0003669]
[1767087311131,0.01140029,87717.0,87709.0,0.0003669]
[1767087311327,0.01144,87716.0,87709.0,0.0003669]
[1767087315229,0.011274,87716.0,87709.0,0.0003669]
[1767087317522,0.01139912,87726.0,87709.0,0.0003669]
[1767087317721,0.05699256,87731.0,87709.0,0.0003669]
[1767087317898,0.01144,87729.0,87710.0,0.51531516]
[1767087318260,0.06838828,87735.0,87710.0,0.51531516]
[1767087318261,0.01144,87728.0,87712.0,0.14425]
[1767087318399,0.01152166,87728.0,87710.0,0.51531516]
[1767087318845,0.01152166,87728.0,87711.0,0.14425]
[1767087321561,8.166e-05,87728.0,87711.0,0.14425]
[1767087321705,0.01144,87729.0,87728.0,0.00046834]
[1767087321900,0.01139769,87737.0,87728.0,0.00046834]
[1767087322107,0.01144,87731.0,87728.0,0.14425]
[1767087324558,0.01156369,87744.0,87728.0,0.14425]
[1767087324767,0.01144,87743.0,87731.0,0.14425]
[1767087324968,0.0001669,87744.0,87731.0,0.14425]
[1767087325975,9e-07,87744.0,87731.0,0.14425]
[1767087326183,9e-07,87744.0,87730.0,0.51531516]
[1767087327654,9e-07,87744.0,87731.0,0.14425]
[1767087328749,9e-07,87744.0,87734.0,0.51531516]
[1767087328954,9e-07,87744.0,87735.0,0.14425]
[1767087329190,0.0002,87752.0,87735.0,0.14425]
[1767087329191,0.00015813,87752.0,87735.0,0.14425]
[1767087329383,0.00015813,87752.0,87740.0,0.65956516]
[1767087329589,0.00015813,87752.0,87741.0,0.011193]
[1767087331616,0.00015813,87752.0,87742.0,0.14425]
[1767087331803,0.00051653,87752.0,87742.0,0.14425]
[1767087333811,0.00051653,87752.0,87741.0,0.011193]
[1767087334024,0.0002148,87753.0,87741.0,0.011193]
[1767087334302,0.0003087,87753.0,87741.0,0.011193]
[1767087336081,0.0003087,87753.0,87742.0,0.14425]
[1767087337727,0.0003087,87753.0,87744.0,0.14425]
[1767087337955,0.01139497,87758.0,87741.0,0.011193]
[1767087338161,0.01139497,87758.0,87741.0,0.0115514]
[1767087338540,0.01139471,87760.0,87741.0,0.0115514]
[1767087338741,0.01139471,87760.0,87741.0,0.1558014]
[1767087339461,0.01139497,87758.0,87741.0,0.1558014]
[1767087339663,0.01139484,87759.0,87741.0,0.1558014]
[1767087340034,0.01139497,87758.0,87741.0,0.1558014]
[1767087340428,0.01139484,87759.0,87741.0,0.1558014]
[1767087340807,0.01139497,87758.0,87741.0,0.1558014]
[1767087341015,0.01139536,87755.0,87741.0,0.1558014]
[1767087341213,0.01139497,87758.0,87741.0,0.1558014]
[1767087341412,0.0113951,87757.0,87741.0,0.1558014]
[1767087341755,0.01139497,87758.0,87741.0,0.1558014]
[1767087341994,0.0113951,87757.0,87741.0,0.1558014]
[1767087342196,0.01139523,87756.0,87741.0,0.1558014]
[1767087342748,0.0113951,87757.0,87741.0,0.1558014]
[1767087342929,0.01139523,87756.0,87741.0,0.1558014]
[1767087343088,0.01139497,87758.0,87741.0,0.1558014]
[1767087343870,0.01139523,87756.0,87741.0,0.1558014]
[1767087347011,0.0113951,87757.0,87741.0,0.1558014]
[1767087347212,0.01139523,87756.0,87741.0,0.1558014]
[1767087348255,0.01139536,87755.0,87741.0,0.0115514]
[1767087348476,0.0569745,87759.0,87741.0,0.0115514]
[1767087348477,0.00936746,87775.0,87755.0,0.000549]
[1767087348683,0.00936746,87775.0,87741.0,0.0115514]
[1767087348684,0.1485,87761.0,87742.0,0.14765839]
[1767087348935,0.1485,87761.0,87742.0,0.15909839]
[1767087348936,0.1485,87759.0,87742.0,0.15909839]
[1767087349348,0.01139458,87761.0,87742.0,0.15909839]
[1767087349735,0.01139471,87760.0,87742.0,0.15909839]
[1767087349950,0.01139523,87756.0,87742.0,0.15909839]
[1767087350148,0.01139523,87756.0,87742.0,0.01144]
[1767087350516,0.01139523,87756.0,87743.0,0.01144]
[1767087350710,0.00843704,87756.0,87743.0,0.01144]
[1767087352099,0.0113951,87757.0,87743.0,0.01144]
[1767087353355,0.06836919,87759.0,87743.0,0.01144]
[1767087353603,0.01139497,87758.0,87745.0,0.0002]
[1767087354168,0.01139549,87754.0,87745.0,0.0002]
[1767087354392,0.01139497,87758.0,87745.0,0.0002]
[1767087355019,0.01139497,87758.0,87753.0,0.00011395]
[1767087355165,0.01139497,87758.0,87750.0,0.00972128]
[1767087355366,0.01139497,87758.0,87750.0,0.00928628]
[1767087357784,0.06836831,87760.0,87750.0,0.00928628]
[1767087357785,0.01139471,87760.0,87750.0,0.00928628]
[1767087358642,0.01139484,87759.0,87750.0,0.00928628]
[1767087359139,0.01139471,87760.0,87750.0,0.00928628]
[1767087359898,0.01139484,87759.0,87751.0,0.0114]
[1767087360364,0.01139471,87760.0,87751.0,0.0114]
[1767087361135,0.01139484,87759.0,87751.0,0.0114]
[1767087361966,0.01139458,87761.0,87751.0,0.0114]
[1767087362133,0.01139432,87763.0,87751.0,0.0114]
[1767087362309,0.01139445,87762.0,87751.0,0.0114]
[1767087362709,0.01139458,87761.0,87751.0,0.0114]
[1767087362957,0.01139445,87762.0,87751.0,0.0114]
[1767087363157,0.01139432,87763.0,87751.0,0.0114]
[1767087363667,0.01139471,87760.0,87751.0,0.0114]
[1767087364386,0.01139445,87762.0,87751.0,0.0114]
[1767087365167,0.01139445,87762.0,87745.0,0.0002]
[1767087365168,0.01139523,87756.0,87749.0,0.0114]
[1767087365368,0.14954,87755.0,87749.0,0.0112]
[1767087365575,0.1495355,87755.0,87747.0,0.0114]
[1767087366138,0.01139549,87754.0,87747.0,0.0114]
[1767087366415,0.01139549,87754.0,87746.0,0.0114]
[1767087366800,0.01139536,87755.0,87741.0,0.0003584]
[1767087366977,0.01139549,87754.0,87746.0,0.0114]
[1767087367175,0.01139536,87755.0,87746.0,0.0114]
[1767087367759,0.01139549,87754.0,87746.0,0.0114]
[1767087368578,0.01139549,87754.0,87741.0,0.0003584]
[1767087368760,0.01139549,87754.0,87742.0,0.0114]
[1767087368986,0.51531516,87752.0,87741.0,0.0003584]
[1767087369187,0.01139718,87741.0,87736.0,1.01e-06]
[1767087369380,0.01139731,87740.0,87734.0,0.0114]
[1767087369595,0.0117553,87741.0,87734.0,0.0114]
[1767087370014,0.01139731,87740.0,87731.0,0.0116]
[1767087370218,0.0117553,87741.0,87731.0,0.0116]
[1767087370422,0.00035812,87741.0,87731.0,0.0116]
[1767087371750,0.53811303,87760.0,87731.0,0.15884]
[1767087372140,0.011409,87751.0,87733.0,0.14724]
[1767087372898,9e-06,87751.0,87733.0,0.14724]
[1767087376539,0.51493026,87750.0,87733.0,0.14724]
[1767087376872,9e-06,87751.0,87740.0,0.51493026]
[1767087377287,9e-06,87751.0,87739.0,0.0114]
[1767087378455,9e-06,87751.0,87740.0,0.51493026]
[1767087380165,0.51493026,87750.0,87739.0,0.0114]
[1767087380515,0.01139627,87748.0,87739.0,0.0114]
[1767087380716,0.06837825,87748.0,87736.0,0.0114]
[1767087380896,0.0113964,87747.0,87736.0,0.0114]
[1767087382342,0.05698265,87746.0,87736.0,0.0114]
[1767087382539,0.01139679,87744.0,87736.0,0.0114]
[1767087382739,0.06838083,87744.0,87742.0,0.01139705]
[1767087382917,0.01139692,87743.0,87742.0,0.01135456]
[1767087383121,0.06838082,87744.0,87742.0,0.01135456]
[1767087383444,0.01139679,87744.0,87742.0,0.01135456]
[1767087384179,0.01139692,87743.0,87736.0,0.0114]
[1767087385993,0.0569839,87745.0,87731.0,0.00055812]
[1767087385994,0.01139808,87734.0,87731.0,0.00055812]
[1767087386201,0.01139847,87731.0,87720.0,0.0114]
[1767087386373,0.01139847,87731.0,87724.0,0.0003561]
[1767087387553,0.01139834,87732.0,87724.0,0.0003561]
[1767087387928,0.01139821,87733.0,87724.0,0.0003561]
[1767087389077,0.01139834,87732.0,87724.0,0.0003561]
[1767087389276,0.01139821,87733.0,87724.0,0.0003561]
[1767087390325,0.01139834,87732.0,87724.0,0.0003561]
[1767087390531,0.0113986,87730.0,87724.0,0.0003561]
[1767087390736,0.01139847,87731.0,87724.0,0.0003561]
[1767087391200,0.0113986,87730.0,87724.0,0.0003561]
[1767087391778,0.01139847,87731.0,87724.0,0.0003561]
[1767087392212,0.0113986,87730.0,87724.0,0.0003561]
[1767087392364,0.01139873,87729.0,87724.0,0.0003561]
[1767087392579,0.01139847,87731.0,87724.0,0.0003561]
[1767087392800,0.01139834,87732.0,87724.0,0.0003561]
[1767087393683,0.01139821,87733.0,87724.0,0.0003561]
[1767087393903,0.01139834,87732.0,87724.0,0.0003561]
[1767087395199,0.01139821,87733.0,87724.0,0.0003561]
[1767087395616,0.01139834,87732.0,87724.0,0.0003561]
[1767087395824,0.01139847,87731.0,87724.0,0.0003561]
[1767087395983,0.01139834,87732.0,87731.0,0.00352401]
[1767087398938,0.06839008,87732.0,87724.0,0.0003561]
[1767087399156,0.01139847,87731.0,87724.0,0.0003561]
[1767087400205,0.01139834,87732.0,87724.0,0.0003561]
[1767087401213,0.01139821,87733.0,87724.0,0.0003561]
[1767087402125,0.52632834,87734.0,87724.0,0.0003561]
[1767087402835,0.01139808,87734.0,87724.0,0.0003561]
[1767087403767,0.01139769,87737.0,87724.0,0.0003561]
[1767087403939,0.01139769,87737.0,87734.0,0.000549]
[1767087404174,0.01139782,87736.0,87724.0,0.0003561]
[1767087405556,0.02283795,87735.0,87724.0,0.0003561]
[1767087406323,0.01144,87735.0,87724.0,0.0003561]
[1767087407153,0.02283795,87735.0,87724.0,0.0003561]
[1767087407740,0.01139808,87734.0,87724.0,0.0003561]
[1767087408370,0.01139821,87733.0,87724.0,0.0003561]
[1767087408528,0.01139808,87734.0,87724.0,0.0003561]
[1767087408730,0.02283795,87735.0,87724.0,0.0003561]
[1767087410588,0.02283795,87735.0,87724.0,0.0002359]
[1767087410707,0.01144,87735.0,87724.0,0.0002359]
[1767087411225,0.01139808,87734.0,87724.0,0.0002359]
[1767087411655,0.01139821,87733.0,87724.0,0.0002359]
[1767087412533,0.02283795,87735.0,87724.0,0.0002359]
[1767087413362,0.01139808,87734.0,87724.0,0.0002359]
[1767087413567,0.01139821,87733.0,87724.0,0.0002359]
[1767087413729,0.01139808,87734.0,87724.0,0.0002359]
[1767087414045,0.01139821,87733.0,87724.0,0.0002359]
[1767087414259,0.01139808,87734.0,87724.0,0.0002359]
[1767087417154,0.01139821,87733.0,87724.0,0.0002359]
[1767087417366,0.01139808,87734.0,87724.0,0.0002359]
[1767087420635,0.02283795,87735.0,87724.0,0.0002359]
[1767087420811,0.01139808,87734.0,87724.0,0.0002359]
[1767087421644,0.01144,87735.0,87724.0,0.0002359]
[1767087421870,0.01089,87735.0,87734.0,0.000549]
[1767087422379,0.01089,87735.0,87724.0,0.0002359]
[1767087422612,0.01139757,87738.0,87724.0,0.0002359]
[1767087422784,0.02283757,87738.0,87724.0,0.0002359]
[1767087423350,0.01139757,87738.0,87724.0,0.0002359]
[1767087426020,0.52632757,87740.0,87724.0,0.1442659]
[1767087426218,0.51493026,87740.0,87724.0,0.1442659]
[1767087426604,0.02283705,87742.0,87724.0,0.1442659]
[1767087426605,0.01144,87742.0,87724.0,0.1442659]
[1767087427003,0.01144,87742.0,87730.0,0.51493026]
[1767087433398,0.01144,87745.0,87730.0,0.65896026]
[1767087434556,0.01144,87745.0,87730.0,0.51493026]
[1767087434933,0.01034,87745.0,87730.0,0.51493026]
[1767087436535,0.01034,87745.0,87730.0,0.51498353]
[1767087437008,0.02173666,87745.0,87730.0,0.51498353]
[1767087438445,0.01034,87745.0,87730.0,0.51498353]
[1767087439058,0.01034,87745.0,87728.0,0.15547]
[1767087439266,0.02173666,87745.0,87730.0,0.51498353]
[1767087440239,0.01139679,87744.0,87730.0,0.51498353]
[1767087440443,0.02173666,87745.0,87730.0,0.51498353]
[1767087440671,0.01034,87745.0,87730.0,0.51498353]
[1767087441441,0.01034,87745.0,87730.0,0.66250353]
[1767087441647,0.01140488,87751.0,87735.0,0.14752]
[1767087441648,0.01139601,87750.0,87735.0,0.14752]
[1767087441807,0.01139614,87749.0,87736.0,0.14752]
[1767087442164,0.01139627,87748.0,87737.0,0.01144]
[1767087442510,0.0113964,87747.0,87737.0,0.01144]
[1767087443522,0.01139653,87746.0,87737.0,0.01144]
[1767087444351,0.0113964,87747.0,87737.0,0.01144]
[1767087444772,0.01139614,87749.0,87737.0,0.01144]
[1767087445112,0.01144,87750.0,87739.0,0.51498353]
[1767087445958,0.02283601,87750.0,87737.0,0.01144]
[1767087446166,0.01139614,87749.0,87737.0,0.01144]
[1767087447256,0.01139627,87748.0,87737.0,0.01144]
[1767087447462,0.0113964,87747.0,87737.0,0.01144]
[1767087447719,0.01139627,87748.0,87737.0,0.01144]
[1767087447905,0.0113964,87747.0,87737.0,0.01144]
[1767087448128,0.15991744,87739.0,87724.0,0.0002359]
[1767087448320,0.01139718,87741.0,87725.0,0.01144]
[1767087448507,0.01139731,87740.0,87725.0,0.01144]
[1767087448716,0.01139718,87741.0,87725.0,0.01144]
[1767087448915,0.01139705,87742.0,87725.0,0.01144]
[1767087448916,0.01139731,87740.0,87725.0,0.01144]
[1767087449218,0.01139705,87742.0,87725.0,0.01144]
[1767087449517,0.01139718,87741.0,87725.0,0.01144]
[1767087449692,0.01139705,87742.0,87725.0,0.01144]
[1767087449904,0.01139692,87743.0,87725.0,0.01144]
[1767087450490,0.01139666,87745.0,87725.0,0.01144]
[1767087450868,0.01139679,87744.0,87725.0,0.01144]
[1767087451763,0.01139692,87743.0,87725.0,0.01144]
[1767087451962,0.01139679,87744.0,87725.0,0.01144]
[1767087452967,0.01139692,87743.0,87725.0,0.01144]
[1767087453644,0.01139705,87742.0,87725.0,0.01144]
[1767087453807,0.01139731,87740.0,87725.0,0.01144]
[1767087454216,0.01139731,87740.0,87724.0,0.0002359]
[1767087454217,0.05698851,87737.0,87724.0,0.0002359]
[1767087454628,0.15218808,87734.0,87724.0,0.0116759]
[1767087454828,0.01139808,87734.0,87724.0,0.0116759]
[1767087455096,0.01139795,87735.0,87724.0,0.0116759]
[1767087455736,0.01139808,87734.0,87724.0,0.0116759]
[1767087456581,0.01139795,87735.0,87724.0,0.0116759]
[1767087456984,0.01139808,87734.0,87724.0,0.0002359]
[1767087457186,0.01139847,87731.0,87724.0,0.0002359]
[1767087457385,0.01139873,87729.0,87724.0,0.0002359]
[1767087457852,0.0113986,87730.0,87724.0,0.0002359]
[1767087458051,0.01139873,87729.0,87724.0,0.0002359]
[1767087458511,0.01139886,87728.0,87724.0,0.0002359]
[1767087458927,0.01139873,87729.0,87724.0,0.0002359]
[1767087459138,0.01139886,87728.0,87724.0,0.0002359]
[1767087459536,0.01139873,87729.0,87724.0,0.0002359]
[1767087461304,0.01139886,87728.0,87724.0,0.0002359]
[1767087461744,0.01139873,87729.0,87724.0,0.0002359]
[1767087462129,0.0113986,87730.0,87724.0,0.0002359]
[1767087468010,0.01139847,87731.0,87724.0,0.0002359]
[1767087468294,0.0113986,87730.0,87724.0,0.0002359]
[1767087468699,0.01139873,87729.0,87724.0,0.0002359]
[1767087470016,0.0113986,87730.0,87724.0,0.0002359]
[1767087471104,0.0113986,87730.0,87724.0,0.0002389]
[1767087471322,0.01139873,87729.0,87724.0,0.0002389]
[1767087472220,0.0113986,87730.0,87724.0,0.0002389]
[1767087472599,0.01139886,87728.0,87724.0,0.0002389]
[1767087472803,0.05699629,87725.0,87724.0,0.0002389]
[1767087473003,0.05699629,87725.0,87718.0,0.0001465]